fUSD/lending_fUSD_20251201
["ID","MTS","AMOUNT","RATE_DAILY","PERIOD"]
[395312549,1764609096711,-185.66,0.000379,120]
[395312550,1764609096721,-301.23536035,0.00037901,30]
[395312551,1764609096730,-301.23536035,0.00037901,30]
[395312552,1764609096740,-302.30611911,0.00037901,30]
[395312553,1764609096750,-300.0,0.00037901,30]
[395312554,1764609096759,-300.0,0.00037901,30]
[395312555,1764609096769,-365.53090475,0.00037901,30]
[395312556,1764609096778,-301.43907032,0.00037901,30]
[395312557,1764609096788,-692.37030134,0.00037901,30]
[395312558,1764609096797,-542.61568666,0.00037901,30]
[395312559,1764609096807,-300.97923548,0.00037901,30]
[395312560,1764609096817,-300.0,0.00037901,30]
[395312561,1764609096827,-301.23536035,0.00037901,30]
[395312562,1764609096836,-300.0,0.00037901,30]
[395312563,1764609096845,-302.30611911,0.00037901,30]
[395312564,1764609096854,-300.0,0.00037901,30]
[395312565,1764609096864,-365.53090475,0.00037901,30]
[395312566,1764609096873,-301.43907034,0.00037901,30]
[395312567,1764609096884,-904.03809559,0.00037901,30]
[395312568,1764609096893,-300.97923548,0.00037901,30]
[395312569,1764609096904,-300.0,0.00037901,30]
[395312570,1764609096913,-301.23536035,0.00037901,30]
[395312571,1764609096922,-302.30611911,0.00037901,30]
[395312572,1764609096932,-300.0,0.00037901,30]
[395312573,1764609096942,-300.0,0.00037901,30]
[395312574,1764609096952,-365.53090475,0.00037901,30]
[395312575,1764609096961,-320.6040059,0.00037901,30]
[395312576,1764609096971,-699.30924592,0.00037901,30]
[395312577,1764609096981,-300.97923548,0.00037901,30]
[395312578,1764609096990,-339.08491219,0.00037901,30]
[395312579,1764609097000,-301.23536035,0.00037901,30]
[395312580,1764609097010,-302.30611911,0.00037901,30]
[395312581,1764609097019,-300.0,0.00037901,30]
[395312582,1764609097029,-300.0,0.00037901,30]
[395312583,1764609097042,-365.53090475,0.00037901,30]
[395312584,1764609097052,-300.0,0.00037901,30]
[395312585,1764609097062,-301.43907034,0.00037901,30]
[395312586,1764609097072,-300.0,0.00037901,30]
[395312587,1764609097082,-692.37030134,0.00037901,30]
[395312588,1764609097091,-300.0,0.00037901,30]
[395312589,1764609097101,-300.0,0.00037901,30]
[395312590,1764609097111,-300.97923548,0.00037901,30]
[395312591,1764609097121,-300.0,0.00037901,30]
[395312592,1764609097132,-300.0,0.00037901,30]
[395312593,1764609097142,-507.23972805,0.00037901,30]
[395312594,1764609097152,-301.23536035,0.00037901,30]
[395312595,1764609097161,-302.30611911,0.00037901,30]
[395312596,1764609097171,-300.0,0.00037901,30]
[395312597,1764609097181,-300.0,0.00037901,30]
[395312598,1764609097191,-365.53090475,0.00037901,30]
[395312599,1764609097200,-300.0,0.00037901,30]
[395312600,1764609097210,-301.43907032,0.00037901,30]
[395312601,1764609097219,-301.59726395,0.00037901,30]
[395312602,1764609097240,-692.37030134,0.00037901,30]
[395312603,1764609097253,-300.0,0.00037901,30]
[395312604,1764609097263,-300.0,0.00037901,30]
[395312605,1764609097273,-300.97923548,0.00037901,30]
[395312606,1764609097284,-300.0,0.00037901,30]
[395312607,1764609097294,-300.0,0.00037901,30]
[395312608,1764609097305,-507.23972801,0.00037901,30]
[395312609,1764609097315,-301.23536035,0.00037901,30]
[395312610,1764609097325,-302.30611911,0.00037901,30]
[395312611,1764609097336,-300.0,0.00037901,30]
[395312612,1764609097347,-300.0,0.00037901,30]
[395312613,1764609097357,-365.53090475,0.00037901,30]
[395312614,1764609097368,-300.0,0.00037901,30]
[395312615,1764609097379,-301.43907034,0.00037901,30]
[395312616,1764609097390,-692.37030134,0.00037901,30]
[395312617,1764609097400,-300.0,0.00037901,30]
[395312618,1764609097411,-300.0,0.00037901,30]
[395312619,1764609097421,-300.97923548,0.00037901,30]
[395312620,1764609097431,-300.0,0.00037901,30]
[395312621,1764609097442,-300.0,0.00037901,30]
[395312622,1764609097453,-507.23972805,0.00037901,30]
[395312623,1764609097463,-301.23536035,0.00037901,30]
[395312624,1764609097474,-302.30611911,0.00037901,30]
[395312625,1764609097484,-300.0,0.00037901,30]
[395312626,1764609097494,-300.0,0.00037901,30]
[395312627,1764609097504,-365.53090475,0.00037901,30]
[395312628,1764609097514,-306.79577646,0.00037901,30]
[395312629,1764609097525,-301.43907032,0.00037901,30]
[395312630,1764609097535,-692.37030134,0.00037901,30]
[395312631,1764609097545,-300.0,0.00037901,30]
[395312632,1764609097555,-304.19133471,0.00037901,30]
[395312633,1764609097565,-300.97923548,0.00037901,30]
[395312634,1764609097575,-300.0,0.00037901,30]
[395312635,1764609097587,-300.0,0.00037901,30]
[395312636,1764609097597,-507.23972801,0.00037901,30]
[395312637,1764609097608,-213.43630282,0.00037924,120]
[395312638,1764609097619,-151.0,0.00037997,14]
[395312639,1764609097631,-50000.0,0.00038,28]
[395312640,1764609097642,-50000.0,0.00038,38]
[395312641,1764609097652,-168.0,0.00038,30]
[395312642,1764609097664,-1000.0,0.00038,120]
[395312643,1764609097675,-49945.30387753,0.00038,10]
[395312644,1764609097685,-2000.0,0.00038,120]
[395312645,1764609097696,-1000.0,0.00038,25]
[395312646,1764609097707,-1000.0,0.00038,25]
[395312647,1764609097717,-551937.32010618,0.00038,2]
[395312648,1764609097727,-1000.0,0.00038,120]
[395312649,1764609097737,-500.0,0.00038,60]
[395312650,1764609097748,-500.0,0.00038,56]
[395312651,1764609097758,-8007.42112072,0.00038,120]
[395312652,1764609097774,-500.0,0.00038,28]
[395312653,1764609097787,-634.18416811,0.00038,60]
[395312654,1764609097797,-500.0,0.00038,21]
[395312655,1764609097808,-696.69366567,0.00038,30]
[395312656,1764609097819,-784.00175485,0.00038,120]
[395312657,1764609097829,-159.23011662,0.00038,120]
[395312658,1764609097840,-1007.12381941,0.00038,120]
[395312659,1764609097850,-315.0,0.00038,2]
[395312660,1764609097860,-151.0,0.00038,31]
[395312661,1764609097871,-151.0,0.00038,31]
[395312662,1764609097883,-173.02032,0.00038,31]
[395312663,1764609097893,-151.0,0.00038,31]
[395312664,1764609098278,-153.465125,0.00038,31]
[395312665,1764609098288,-151.0,0.00038,31]
[395312666,1764609098299,-960.36,0.00038041,30]
[395312667,1764609098309,-960.36,0.00038041,30]
[395312668,1764609098321,-536.51436795,0.00038053,2]
[395312669,1764609098331,-199.0,0.00038082,11]
[395312670,1764609098342,-781.14106,0.00038088,30]
[395312671,1764609098352,-484.22362484,0.000381,33]
[395312672,1764609098362,-1098.24,0.0003816,120]
[395312673,1764609098372,-608.0,0.00038181,14]
[395312674,1764609098382,-781.14106,0.00038288,30]
[395312675,1764609098392,-504.87554486,0.000383,30]
[395312676,1764609098403,-960.36,0.00038315,30]
[395312677,1764609098413,-960.36,0.00038315,30]
[395312678,1764609098423,-152.0,0.00038329,21]
[395312679,1764609098434,-1100.0,0.00038356,120]
[395312680,1764609098445,-500.0,0.00038356,30]
[395312681,1764609098456,-151.0,0.00038356,120]
[395312682,1764609098466,-151.0,0.00038356,120]
[395312683,1764609098477,-151.0,0.00038356,120]
[395312684,1764609098487,-151.0,0.00038356,120]
[395312685,1764609098498,-151.0,0.00038356,120]
[395312686,1764609098509,-151.0,0.00038356,120]
[395312687,1764609098520,-151.0,0.00038356,120]
[395312688,1764609098531,-151.0,0.00038356,120]
[395312689,1764609098540,-151.0,0.00038356,120]
[395312690,1764609098550,-151.0,0.00038356,120]
[395312691,1764609098560,-259.026288,0.00038356,120]
[395312692,1764609098571,-1193.122601,0.00038356,120]
[395312693,1764609098581,-1193.122601,0.00038356,120]
[395312694,1764609098592,-1193.122601,0.00038356,120]
[395312695,1764609098602,-1193.122601,0.00038356,120]
[395312696,1764609098612,-1193.122601,0.00038356,120]
[395312697,1764609098623,-1193.122601,0.00038356,120]
[395312698,1764609098635,-1193.122601,0.00038356,120]
[395312699,1764609098646,-1193.122601,0.00038356,120]
[395312700,1764609098655,-1193.122601,0.00038356,120]
[395312701,1764609098666,-1193.122601,0.00038356,120]
[395312702,1764609098676,-1193.122601,0.00038356,120]
[395312703,1764609098686,-1193.122601,0.00038356,120]
[395312704,1764609098696,-1193.122601,0.00038356,120]
[395312705,1764609098706,-1193.122601,0.00038356,120]
[395312706,1764609098716,-1193.122601,0.00038356,120]
[395312707,1764609098727,-1193.122601,0.00038356,120]
[395312708,1764609098737,-1193.122601,0.00038356,120]
[395312709,1764609098752,-1193.122601,0.00038356,120]
[395312710,1764609098762,-1193.122601,0.00038356,120]
[395312711,1764609098772,-1193.12261,0.00038356,120]
[395312712,1764609098782,-438.33738327,0.00038356,2]
[395312713,1764609098793,-150.0,0.00038356,5]
[395312714,1764609098803,-3000.0,0.00038412,14]
[395312715,1764609098814,-2277.408,0.00038456,51]
[395312716,1764609098824,-1603.0,0.00038481,2]
[395312717,1764609098834,-1258.0,0.00038481,2]
[395312718,1764609098845,-4704.0,0.00038481,2]
[395312719,1764609098856,-781.14106,0.00038488,30]
[395312720,1764609098866,-500.0,0.00038493,30]
[395312721,1764609098877,-152.91422293,0.000385,30]
[395312722,1764609098888,-500.0,0.000385,60]
[395312723,1764609098900,-187.13,0.000385,30]
[395312724,1764609098910,-960.36,0.00038589,30]
[395312725,1764609098921,-960.36,0.00038589,30]
[395312726,1764609098932,-608.0,0.00038592,14]
[395312727,1764609098943,-150.0,0.0003861,30]
[395312728,1764609098954,-150.0,0.0003861,30]
[395312729,1764609098965,-500.0,0.0003863,30]
[395312730,1764609098976,-199.0,0.0003863,12]
[395312731,1764609098987,-1167.67,0.0003863,120]
[395312732,1764609098997,-781.14106,0.00038688,30]
[395312733,1764609099008,-500.0,0.000387,120]
[395312734,1764609099019,-500.0,0.000387,120]
[395312735,1764609099029,-500.0,0.000387,120]
[395312736,1764609099044,-500.0,0.000387,120]
[395312737,1764609099055,-500.0,0.000387,120]
[395312738,1764609099067,-500.0,0.000387,120]
[395312739,1764609099079,-500.0,0.000387,120]
[395312740,1764609099091,-500.0,0.000387,120]
[395312741,1764609099103,-500.0,0.000387,120]
[395312742,1764609099115,-500.0,0.000387,120]
[395312743,1764609099127,-500.0,0.000387,120]
[395312744,1764609099139,-500.0,0.000387,120]
[395312745,1764609099151,-500.0,0.000387,120]
[395312746,1764609099162,-500.0,0.000387,120]
[395312747,1764609099174,-500.0,0.000387,120]
[395312748,1764609099186,-500.0,0.000387,120]
[395312749,1764609099199,-500.0,0.000387,120]
[395312750,1764609099211,-500.0,0.000387,120]
[395312751,1764609099223,-500.0,0.000387,120]
[395312752,1764609099235,-500.0,0.000387,120]
[395312753,1764609099247,-500.0,0.00038767,30]
[395312754,1764609099259,-724525.50222953,0.000388,15]
[395312755,1764609099271,-960.36,0.00038863,30]
[395312756,1764609099287,-960.36,0.00038863,30]
[395312757,1764609099299,-1098.24,0.0003888,120]
[395312758,1764609099310,-454.0,0.00038886,30]
[395312759,1764609099322,-912.0661505,0.000389,31]
[395312760,1764609099334,-313.10758912,0.000389,120]
[395312761,1764609099347,-162.0,0.000389,120]
[395312762,1764609099359,-500.0,0.00038904,30]
[395312763,1764609099371,-10821.11,0.00038904,2]
[395312764,1764609099383,-1595.653025,0.00038904,50]
[395312765,1764609099395,-1595.653025,0.00038904,50]
[395312766,1764609099407,-1595.653025,0.00038904,50]
[395312767,1764609099418,-1595.653025,0.00038904,50]
[395312768,1764609099431,-1595.653025,0.00038904,50]
[395312769,1764609099442,-1595.653025,0.00038904,50]
[395312770,1764609099455,-1595.653025,0.00038904,50]
[395312771,1764609099466,-1595.653025,0.00038904,50]
[395312772,1764609099478,-1595.653025,0.00038904,50]
[395312773,1764609099489,-1595.653025,0.00038904,50]
[395312774,1764609099501,-1595.653025,0.00038904,50]
[395312775,1764609099513,-1595.653025,0.00038904,50]
[395312776,1764609099524,-1595.653025,0.00038904,50]
[395312777,1764609099536,-1595.653025,0.00038904,50]
[395312778,1764609099548,-1595.653025,0.00038904,50]
[395312779,1764609099560,-1595.653025,0.00038904,50]
[395312780,1764609099571,-1595.653025,0.00038904,50]
[395312781,1764609099583,-1595.653025,0.00038904,50]
[395312782,1764609099595,-1595.653025,0.00038904,50]
[395312783,1764609099607,-1595.653025,0.00038904,50]
[395312784,1764609099620,-203.0,0.0003891,30]
[395312785,1764609099632,-1322.0,0.00038965,2]
[395312786,1764609099644,-7069.64003454,0.00038999,10]
[395312787,1764609099658,-50000.0,0.00039,39]
[395312788,1764609099670,-50000.0,0.00039,29]
[395312789,1764609099681,-50000.0,0.00039,19]
[395312790,1764609099694,-958.0,0.00039,7]
[395312791,1764609099706,-500.0,0.00039,63]
[395312792,1764609099719,-30459.78989502,0.00039,2]
[395312793,1764609099731,-463.69359172,0.00039,10]
[395312794,1764609099743,-710.90153237,0.00039,30]
[395312795,1764609099755,-2454.43474876,0.00039,120]
[395312796,1764609099766,-1000.0,0.00039,120]
[395312797,1764609099778,-2000.0,0.00039,60]
[395312798,1764609099790,-10148.74715647,0.00039,60]
[395312799,1764609099802,-9993.9,0.00039,14]
[395312800,1764609099814,-665.9537962,0.00039,120]
[395312801,1764609099826,-494.82077191,0.00039,120]
[395312802,1764609099838,-1366.0,0.00039,2]
[395312803,1764609099850,-280.34670139,0.00039,2]
[395312804,1764609099862,-486.71,0.00039,14]
[395312805,1764609099873,-445.1802467,0.00039,120]
[395312806,1764609099886,-4571.8816583,0.00039,2]
[395312807,1764609099898,-10509.74,0.00039,30]
[395312808,1764609099910,-20282.0,0.00039,30]
[395312809,1764609099920,-608.0,0.00039003,14]
[395312810,1764609099932,-152.0,0.00039016,22]
[395312811,1764609099944,-2083.492278,0.00039022,120]
[395312812,1764609099955,-306.74914381,0.00039025,30]
[395312813,1764609099967,-500.0,0.00039041,30]
[395312814,1764609099979,-781.14106,0.00039088,30]
[395312815,1764609099990,-214.28835431,0.00039098,120]
[395312816,1764609100001,-216.23573793,0.00039098,120]
[395312817,1764609100012,-960.36,0.00039137,30]
[395312818,1764609100023,-960.36,0.00039137,30]
[395312819,1764609100041,-500.0,0.00039178,30]
[395312820,1764609100052,-199.0,0.00039178,13]
[395312821,1764609100064,-500.0,0.00039178,120]
[395312822,1764609100075,-500.0,0.00039192,120]
[395312823,1764609100088,-803.03492201,0.000392,120]
[395312824,1764609100100,-500.0,0.00039206,120]
[395312825,1764609100112,-500.0,0.0003922,120]
[395312826,1764609100123,-500.0,0.00039234,120]
[395312827,1764609100136,-500.0,0.00039248,120]
[395312828,1764609100148,-300.011533,0.00039249,94]
[395312829,1764609100159,-500.0,0.00039262,120]
[395312830,1764609100171,-500.0,0.00039276,120]
[395312831,1764609100183,-781.14106,0.00039288,30]
[395312832,1764609100194,-500.0,0.0003929,120]
[395312833,1764609100206,-500.0,0.00039305,120]
[395312834,1764609100217,-505.97611514,0.00039315,30]
[395312835,1764609100228,-500.0,0.00039319,120]
[395312836,1764609100239,-500.0,0.00039333,120]
[395312837,1764609100250,-500.0,0.00039347,120]
[395312838,1764609100260,-157.86,0.00039348,120]
[395312839,1764609100271,-500.0,0.00039361,120]
[395312840,1764609100283,-500.0,0.00039375,120]
[395312841,1764609100294,-253.94,0.00039384,120]
[395312842,1764609100306,-500.0,0.00039389,120]
[395312843,1764609100317,-500.0,0.00039403,120]
[395312844,1764609100335,-960.36,0.00039411,30]
[395312845,1764609100359,-960.36,0.00039411,30]
[395312846,1764609100380,-608.0,0.00039414,14]
[395312847,1764609100402,-500.0,0.00039417,120]
[395312848,1764609100421,-556.36539957,0.00039422,2]
[395312849,1764609100442,-500.0,0.00039431,120]
[395312850,1764609100463,-500.0,0.00039445,120]
[395312851,1764609100484,-157.86,0.00039448,120]
[395312852,1764609100504,-409.31787925,0.00039451,7]
[395312853,1764609100523,-1167.67,0.00039452,120]
[395312854,1764609100545,-500.0,0.00039459,120]
[395312855,1764609100562,-500.0,0.00039473,120]
[395312856,1764609100576,-500.0,0.00039487,120]
[395312857,1764609100597,-781.14106,0.00039488,30]
[395312858,1764609100611,-213.43630282,0.0003949,120]
[395312859,1764609100629,-1000.0,0.00039499,2]
[395312860,1764609100648,-1500.0,0.000395,30]
[395312861,1764609100665,-1500.0,0.000395,30]
[395312862,1764609100681,-2129.5320353,0.000395,30]
[395312863,1764609100699,-500.0,0.00039501,120]
[395312864,1764609100721,-500.0,0.00039515,120]
[395312865,1764609100754,-500.0,0.00039529,120]
[395312866,1764609100774,-500.0,0.00039543,120]
[395312867,1764609100794,-157.86,0.00039548,120]
[395312868,1764609100816,-500.0,0.00039557,120]
[395312869,1764609100836,-500.0,0.00039571,120]
[395312870,1764609100859,-500.0,0.00039586,120]
[395312871,1764609100880,-500.0,0.000396,120]
[395312872,1764609100901,-500.0,0.000396,120]
[395312873,1764609100919,-500.0,0.000396,120]
[395312874,1764609100937,-500.0,0.000396,120]
[395312875,1764609100957,-500.0,0.000396,120]
[395312876,1764609100976,-520.0,0.000396,120]
[395312877,1764609100994,-500.0,0.00039614,120]
[395312878,1764609101015,-500.0,0.00039628,120]
[395312879,1764609101033,-500.0,0.00039642,120]
[395312880,1764609101054,-157.86,0.00039648,120]
[395312881,1764609101074,-882.97,0.00039654,2]
[395312882,1764609101093,-500.0,0.00039656,120]
[395312883,1764609101113,-1216.9150318,0.00039666,60]
[395312884,1764609101134,-500.0,0.0003967,120]
[395312885,1764609101153,-500.0,0.00039684,120]
[395312886,1764609101171,-960.36,0.00039685,30]
[395312887,1764609101188,-960.36,0.00039685,30]
[395312888,1764609101205,-781.14106,0.00039688,30]
[395312889,1764609101223,-500.0,0.00039698,120]
[395312890,1764609101239,-152.0,0.00039704,23]
[395312891,1764609101257,-500.0,0.00039712,120]
[395312892,1764609101273,-1100.0,0.00039726,120]
[395312893,1764609101290,-1023.84544427,0.00039726,120]
[395312894,1764609101307,-199.0,0.00039726,14]
[395312895,1764609101322,-619.38345773,0.00039726,120]
[395312896,1764609101339,-1000.0,0.00039726,30]
[395312897,1764609101356,-188.0,0.00039726,30]
[395312898,1764609101372,-257.0,0.00039726,30]
[395312899,1764609101388,-1000.0,0.00039726,30]
[395312900,1764609101405,-1000.0,0.00039726,30]
[395312901,1764609101421,-1000.0,0.00039726,30]
[395312902,1764609101437,-1000.0,0.00039726,30]
[395312903,1764609101453,-1000.0,0.00039726,30]
[395312904,1764609101469,-250.0,0.00039726,5]
[395312905,1764609101485,-157.86,0.00039748,120]
[395312906,1764609101502,-270.72959571,0.000398,120]
[395312907,1764609101518,-664.69,0.000398,60]
[395312908,1764609101540,-2771.4,0.000398,120]
[395312909,1764609101565,-608.0,0.00039825,14]
[395312910,1764609101591,-157.86,0.00039848,120]
[395312911,1764609101615,-5000.0,0.00039876,31]
[395312912,1764609101638,-16663.40359482,0.00039888,2]
[395312913,1764609101661,-781.14106,0.00039888,30]
[395312914,1764609101681,-169.0,0.000399,90]
[395312915,1764609101701,-336.80241227,0.000399,120]
[395312916,1764609101719,-336.80241213,0.000399,120]
[395312917,1764609101739,-336.80241213,0.000399,120]
[395312918,1764609101776,-336.80241213,0.000399,120]
[395312919,1764609101795,-336.80241213,0.000399,120]
[395312920,1764609101814,-336.80241213,0.000399,120]
[395312921,1764609101831,-336.80241213,0.000399,120]
[395312922,1764609101848,-157.86,0.00039948,120]
[395312923,1764609101866,-960.36,0.00039959,30]
[395312924,1764609101882,-960.36,0.00039959,30]
[395312925,1764609101899,-151.0,0.00039997,14]
[395312926,1764609101916,-500.0,0.00039999,120]
[395312927,1764609101932,-562.09588733,0.00039999,120]
[395312928,1764609101949,-8024.40681744,0.00039999,2]
[395312929,1764609101966,-11108.13554814,0.00039999,2]
[395312930,1764609101982,-390.05341729,0.00039999,31]
[395312931,1764609101999,-292.25666274,0.00039999,31]
[395312932,1764609102016,-390.75344089,0.00039999,31]
[395312933,1764609102031,-460.06859905,0.00039999,31]
[395312934,1764609102051,-500.0,0.00039999,31]
[395312935,1764609102067,-448.75346126,0.00039999,7]
[395312936,1764609102084,-427.582699,0.00039999,31]
[395312937,1764609102099,-397.21378946,0.00039999,15]
[395312938,1764609102116,-500.0,0.00039999,31]
[395312939,1764609102131,-315.38389256,0.00039999,31]
[395312940,1764609102147,-500.0,0.00039999,31]
[395312941,1764609102162,-500.0,0.00039999,31]
[395312942,1764609102176,-500.0,0.00039999,31]
[395312943,1764609102192,-158.94411917,0.00039999,31]
[395312944,1764609102207,-180.15295466,0.00039999,31]
[395312945,1764609102221,-500.0,0.00039999,31]
[395312946,1764609102236,-500.0,0.00039999,31]
[395312947,1764609102250,-500.0,0.00039999,31]
[395312948,1764609102264,-500.0,0.00039999,31]
[395312949,1764609102280,-500.0,0.00039999,31]
[395312950,1764609102294,-500.0,0.00039999,31]
[395312951,1764609102309,-592.10216705,0.00039999,31]
[395312952,1764609102323,-500.0,0.00039999,31]
[395312953,1764609102339,-1852.50237357,0.00039999,31]
[395312954,1764609102360,-1852.50237357,0.00039999,31]
[395312955,1764609102381,-1852.50237357,0.00039999,31]
[395312956,1764609102401,-1852.50237357,0.00039999,31]
[395312957,1764609102420,-171.37659197,0.00039999,31]
[395312958,1764609102438,-500.0,0.00039999,31]
[395312959,1764609102457,-500.0,0.00039999,31]
[395312960,1764609102474,-500.0,0.00039999,31]
[395312961,1764609102491,-430.49707248,0.00039999,31]
[395312962,1764609102507,-500.0,0.00039999,31]
[395312963,1764609102525,-50000.0,0.0004,40]
[395312964,1764609102541,-50000.0,0.0004,30]
[395312965,1764609102557,-50000.0,0.0004,20]
[395312966,1764609102574,-8211.14952219,0.0004,120]
[395312967,1764609102589,-444.0,0.0004,120]
[395312968,1764609102603,-1000.0,0.0004,120]
[395312969,1764609102618,-212.47,0.0004,120]
[395312970,1764609102634,-100000.0,0.0004,30]
[395312971,1764609102649,-470.0,0.0004,120]
[395312972,1764609102665,-260.9751,0.0004,120]
[395312973,1764609102681,-1000.0,0.0004,120]
[395312974,1764609102697,-300.15022272,0.0004,120]
[395312975,1764609102711,-119299.96247028,0.0004,2]
[395312976,1764609102726,-1361.41801515,0.0004,120]
[395312977,1764609102742,-20000.0,0.0004,120]
[395312978,1764609102757,-739.28465197,0.0004,120]
[395312979,1764609102772,-1844.07911631,0.0004,120]
[395312980,1764609102787,-161.0,0.0004,21]
[395312981,1764609102802,-1356.54616727,0.0004,70]
[395312982,1764609102817,-250.0,0.0004,120]
[395312983,1764609102833,-400.0,0.0004,120]
[395312984,1764609102847,-150.0,0.0004,60]
[395312985,1764609102862,-1000.0,0.0004,120]
[395312986,1764609102877,-160.0,0.0004,2]
[395312987,1764609102892,-852.75317108,0.0004,5]
[395312988,1764609102908,-200.0,0.0004,120]
[395312989,1764609102922,-861.75343935,0.0004,120]
[395312990,1764609102936,-477.12749073,0.0004,30]
[395312991,1764609102950,-503.45516238,0.0004,30]
[395312992,1764609102964,-775.77236562,0.0004,2]
[395312993,1764609102979,-439.59975827,0.0004,120]
[395312994,1764609102994,-469.88954904,0.0004,120]
[395312995,1764609103010,-1306.61044345,0.0004,120]
[395312996,1764609103024,-1877.64603999,0.0004,30]
[395312997,1764609103043,-206.57660225,0.0004,30]
[395312998,1764609103061,-2028.01924141,0.0004,120]
[395312999,1764609103076,-775.33748609,0.0004,120]
[395313000,1764609103094,-1456.27385578,0.0004,120]
[395313001,1764609103109,-386.40701467,0.0004,2]
[395313002,1764609103125,-2328.43207214,0.0004,120]
[395313003,1764609103139,-524.53474763,0.0004,120]
[395313004,1764609103154,-216.56312123,0.0004,2]
[395313005,1764609103168,-455.70694286,0.0004,30]
[395313006,1764609103183,-444.62040343,0.0004,120]
[395313007,1764609103203,-919.53,0.0004,12]
[395313008,1764609103221,-2719.47707297,0.0004,30]
[395313009,1764609103238,-807.00820079,0.0004,30]
[395313010,1764609103254,-672.5085805,0.0004,30]
[395313011,1764609103273,-178.69213133,0.0004,120]
[395313012,1764609103288,-520.0,0.0004,30]
[395313013,1764609103304,-181.36238479,0.0004,120]
[395313014,1764609103320,-311.61570216,0.0004,2]
[395313015,1764609103336,-328.24011401,0.0004,120]
[395313016,1764609103351,-535.0,0.0004,120]
[395313017,1764609103367,-1500.0,0.0004,30]
[395313018,1764609103384,-512.0,0.0004,120]
[395313019,1764609103399,-500.0,0.0004,120]
[395313020,1764609103415,-2988.54712993,0.0004,5]
[395313021,1764609103431,-160.72544515,0.0004,120]
[395313022,1764609103446,-1733.2,0.0004,120]
[395313023,1764609103463,-25275.50114527,0.0004,120]
[395313024,1764609103478,-726.48285718,0.0004,30]
[395313025,1764609103494,-1591.54777936,0.0004,120]
[395313026,1764609103510,-1055.5321,0.0004,120]
[395313027,1764609103994,-500.0,0.0004,30]
[395313028,1764609104004,-644.42,0.0004,120]
[395313029,1764609104014,-1000.0,0.0004,30]
[395313030,1764609104023,-1000.0,0.0004,30]
[395313031,1764609104033,-511.98610593,0.0004,30]
[395313032,1764609104049,-2234.86233386,0.0004,120]
[395313033,1764609104059,-169.16438207,0.0004,2]
[395313034,1764609104070,-676.73686206,0.0004,30]
[395313035,1764609104081,-298.22920854,0.0004,120]
[395313036,1764609104092,-1365.0,0.0004,30]
[395313037,1764609104102,-1000.0,0.0004,120]
[395313038,1764609104114,-200.0,0.0004,120]
[395313039,1764609104127,-280.0,0.0004,30]
[395313040,1764609104139,-190.97734363,0.0004,6]
[395313041,1764609104149,-191.44442902,0.0004,5]
[395313042,1764609104159,-222.0,0.0004,120]
[395313043,1764609104170,-22115.4876612,0.0004,10]
[395313044,1764609104181,-10201.0,0.0004,120]
[395313045,1764609104191,-10000.0,0.0004,60]
[395313046,1764609104203,-1544.49784464,0.0004,2]
[395313047,1764609104213,-42774.4113632,0.0004,120]
[395313048,1764609104224,-510.0,0.0004,5]